[Event "Najdorf Memorial-B 2022"]
[Site "Warsaw"]
[Date "2022.07.14"]
[Round "6.9"]
[White "Prokopiuk, Jakub"]
[Black "Machnik, Stanislaw"]
[Result "1-0"]
[ECO "B29"]
[WhiteElo "1481"]
[BlackElo "1381"]
[Annotator "NA"]
[PlyCount "121"]
[EventDate "2022.07.09"]
[EventType "swiss"]
[EventCountry "POL"]
[SourceTitle "playchess.com"]
[Source "ChessBase"]
[SourceQuality "1"]
[TimeControl "40/5400+30:1800+30"]

1. e4 c5 {[%emt 0:00:03]} 2. Nf3 {[%emt 0:00:08]} Nf6 {[%emt 0:00:03]} 3. e5 {[%emt 0:00:04]} Nd5 {[%emt 0:00:03]} 4. Nc3 {[%emt 0:00:05]} e6 {[%emt 0:00:05]} 5. Nxd5 {[%emt 0:00:04]} exd5 {[%emt 0:00:03]} 6. d4 {[%emt 0:00:06]} Nc6 {[%emt 0:00:04]} 7. dxc5 {[%emt 0:00:04]} Bxc5 {[%emt 0:00:06]} 8. Qxd5 {[%emt 0:00:08]} Qb6 {[%emt 0:00:02]} 9. Bc4 {[%emt 0:00:20]} Bxf2+ {[%emt 0:02:26]} 10. Ke2 {[%emt 0:00:12]} O-O {[%emt 0:00:15]} 11. Rf1 {[%emt 0:00:07]} Bc5 {[%emt 0:00:04]} 12. Ng5 {[%emt 0:02:23]} Nd4+ {[%emt 0:00:30]} 13. Kd1 {[%emt 0:00:08]} Ne6 {[%emt 0:00:49]} 14. Ne4 {[%emt 0:00:30]} d6 {[%emt 0:00:49]} 15. exd6 {[%emt 0:01:48]} Rd8 {[%emt 0:00:12]} 16. Bd3 {[%emt 0:00:08]} Bxd6 {[%emt 0:07:22]} 17. Qh5 {[%emt 0:01:23]} f5 {[%emt 0:06:59]} 18. Nxd6 {[%emt 0:05:36]} Qxd6 {[%emt 0:10:22]} 19. Qxf5 {[%emt 0:00:12]} Nf8 {[%emt 0:00:18]} 20. Qf4 {[%emt 0:00:22]} Qxf4 {[%emt 0:13:03]} 21. Bxf4 {[%emt 0:04:34]} Bf5 {[%emt 0:00:24]} 22. Kd2 {[%emt 0:04:30]} Bxd3 {[%emt 0:03:26]} 23. cxd3 {[%emt 0:00:16]} Rd7 {[%emt 0:03:05]} 24. Rac1 {[%emt 0:07:52]} Rad8 {[%emt 0:01:53]} 25. Rc3 {[%emt 0:05:36]} Ne6 {[%emt 0:04:29]} 26. Bg3 {[%emt 0:06:01]} b5 {[%emt 0:02:05]} 27. b4 {[%emt 0:13:16]} a5 {[%emt 0:14:54]} 28. a3 {[%emt 0:00:30]} axb4 {[%emt 0:00:30]} 29. axb4 {[%emt 0:08:56]} Rd4 30. Rb3 {[%emt 0:00:30]} R8d5 {[%emt 0:01:00]} 31. Re1 {[%emt 0:13:04]} Nf4 {[%emt 0:02:03]} 32. Bxf4 {[%emt 0:00:09]} Rxf4 {[%emt 0:00:02]} 33. g3 {[%emt 0:00:28]} Rfd4 {[%emt 0:04:57]} 34. Rc1 {[%emt 0:01:12]} Kf7 {[%emt 0:03:38]} 35. Rc5 {[%emt 0:00:31]} Ke6 {[%emt 0:00:13]} 36. Rxd5 {[%emt 0:00:15]} Kxd5 {[%emt 0:00:02]} 37. Kc3 {[%emt 0:00:43]} Rg4 {[%emt 0:02:46]} 38. Rb2 {[%emt 0:02:13]} h5 {[%emt 0:00:28]} 39. Rf2 {[%emt 0:02:10]} h4 {[%emt 0:01:42]} 40. Rf5+ {[%emt 0:00:00]} Kc6 {[%emt 0:00:00]} 41. Rc5+ {[%emt 0:05:16]} Kb6 {[%emt 0:01:49]} 42. gxh4 {[%emt 0:00:39]} Rxh4 {[%emt 0:00:08]} 43. Rg5 {[%emt 0:00:07]} Rxh2 {[%emt 0:01:04]} 44. Rg6+ {[%emt 0:00:45]} Kb7 {[%emt 0:00:17]} 45. Rxg7+ {[%emt 0:00:21]} Kc6 {[%emt 0:00:03]} 46. Rg6+ {[%emt 0:02:09]} Kd5 {[%emt 0:00:46]} 47. Rb6 {[%emt 0:00:26]} Rh1 {[%emt 0:00:22]} 48. Rxb5+ {[%emt 0:00:16]} Kc6 {[%emt 0:00:15]} 49. Rg5 {[%emt 0:01:22]} Rc1+ {[%emt 0:00:09]} 50. Kd4 {[%emt 0:00:41]} Rb1 {[%emt 0:00:07]} 51. b5+ {[%emt 0:11:08]} Kb6 52. Rg6+ {[%emt 0:00:30]} Kxb5 53. Kd5 {[%emt 0:00:30]} Rh1 54. Re6 {[%emt 0:00:30]} Rh5+ 55. Re5 {[%emt 0:00:30]} Rh6 56. d4 {[%emt 0:00:30]} Rc6 57. Re1 {[%emt 0:00:30]} Kb6 58. Re6 {[%emt 0:00:30]} Rxe6 59. Kxe6 {[%emt 0:00:30]} Kc7 60. d5 {[%emt 0:00:30]} Kd8 61. Kd6 {[%emt 0:00:30]} 1-0

[Event "Najdorf Memorial-B 2022"]
[Site "Warsaw"]
[Date "2022.07.14"]
[Round "6.10"]
[White "Chekhani, Anna"]
[Black "Nawalaniec, Adam"]
[Result "0-1"]
[ECO "A59"]
[WhiteElo "1575"]
[BlackElo "1768"]
[Annotator "NA"]
[PlyCount "114"]
[EventDate "2022.07.09"]
[EventType "swiss"]
[EventCountry "POL"]
[SourceTitle "playchess.com"]
[Source "ChessBase"]
[SourceQuality "1"]
[TimeControl "40/5400+30:1800+30"]

1. d4 {[%emt 0:00:07]} c5 {[%emt 0:00:13]} 2. d5 {[%emt 0:00:22]} Nf6 {[%emt 0:00:17]} 3. c4 {[%emt 0:00:06]} b5 {[%emt 0:00:22]} 4. cxb5 {[%emt 0:00:17]} a6 {[%emt 0:00:18]} 5. bxa6 {[%emt 0:00:08]} Bxa6 {[%emt 0:00:11]} 6. Nc3 {[%emt 0:00:09]} d6 {[%emt 0:00:27]} 7. e4 {[%emt 0:00:10]} Bxf1 {[%emt 0:00:08]} 8. Kxf1 {[%emt 0:00:03]} g6 {[%emt 0:00:25]} 9. g3 {[%emt 0:00:18]} Bg7 {[%emt 0:00:20]} 10. Kg2 {[%emt 0:00:10]} O-O {[%emt 0:01:06]} 11. Nf3 {[%emt 0:00:13]} Nbd7 {[%emt 0:01:42]} 12. a4 {[%emt 0:00:32]} Qb6 {[%emt 0:03:35]} 13. Qc2 {[%emt 0:02:19]} Rfb8 {[%emt 0:03:40]} 14. Ra3 {[%emt 0:05:40]} Ne8 {[%emt 0:12:37]} 15. Nb5 {[%emt 0:12:24]} Qa5 {[%emt 0:12:06]} 16. b3 {[%emt 0:13:05]} Ndf6 {[%emt 0:13:16]} 17. Nd2 {[%emt 0:05:20]} Ng4 {[%emt 0:09:30]} 18. Nc4 {[%emt 0:01:49]} Qa6 {[%emt 0:01:14]} 19. Bd2 {[%emt 0:08:00]} Ne5 {[%emt 0:03:28]} 20. Na5 {[%emt 0:07:13]} Nd7 {[%emt 0:09:53]} 21. f4 {[%emt 0:09:32]} Nc7 {[%emt 0:05:07]} 22. Nxc7 {[%emt 0:16:55]} Qe2+ {[%emt 0:00:09]} 23. Kh3 {[%emt 0:00:10]} Rxa5 {[%emt 0:01:26]} 24. Ra2 {[%emt 0:05:17]} c4 {[%emt 0:10:45]} 25. bxc4 {[%emt 0:07:10]} Rc5 {[%emt 0:03:57]} 26. Na6 {[%emt 0:02:23]} Qh5+ {[%emt 0:03:40]} 27. Kg2 {[%emt 0:00:11]} Qe2+ {[%emt 0:01:51]} 28. Kh3 {[%emt 0:00:07]} Qh5+ {[%emt 0:01:56]} 29. Kg2 {[%emt 0:00:06]} Qe2+ {[%emt 0:00:38]} 30. Kh3 {[%emt 0:00:07]} Rxc4 {[%emt 0:00:33]} 31. Qd1 {[%emt 0:00:55]} Qxd1 {[%emt 0:00:01]} 32. Rxd1 {[%emt 0:00:07]} Ra8 {[%emt 0:00:44]} 33. Nb4 {[%emt 0:00:24]} Rxe4 {[%emt 0:00:03]} 34. a5 {[%emt 0:01:49]} Rd4 {[%emt 0:00:47]} 35. Re1 {[%emt 0:00:31]} Rxd2 {[%emt 0:00:18]} 36. Rxd2 {[%emt 0:00:12]} Bc3 {[%emt 0:00:01]} 37. Rde2 {[%emt 0:01:50]} Bxb4 {[%emt 0:00:39]} 38. Rb1 {[%emt 0:00:32]} Bc3 {[%emt 0:01:20]} 39. Rb7 {[%emt 0:02:07]} Nc5 {[%emt 0:00:11]} 40. Rbxe7 {[%emt 0:00:00]} Bxa5 {[%emt 0:00:00]} 41. f5 {[%emt 0:12:58]} Kg7 {[%emt 0:11:13]} 42. fxg6 {[%emt 0:03:07]} hxg6 {[%emt 0:00:22]} 43. Rf2 {[%emt 0:00:11]} Rf8 {[%emt 0:00:30]} 44. Rf3 {[%emt 0:03:20]} Bd8 {[%emt 0:00:37]} 45. Ra7 {[%emt 0:00:20]} Bf6 {[%emt 0:00:17]} 46. Kg4 {[%emt 0:05:51]} Re8 {[%emt 0:02:43]} 47. Ra2 {[%emt 0:02:02]} Re4+ {[%emt 0:05:59]} 48. Rf4 {[%emt 0:00:15]} Re5 {[%emt 0:01:44]} 49. Rd4 {[%emt 0:01:26]} Rg5+ {[%emt 0:00:08]} 50. Kf4 {[%emt 0:00:08]} Rf5+ {[%emt 0:00:07]} 51. Ke3 {[%emt 0:00:29]} Bxd4+ {[%emt 0:00:10]} 52. Kxd4 {[%emt 0:00:08]} Re5 {[%emt 0:00:31]} 53. Ra8 {[%emt 0:00:35]} Re4+ {[%emt 0:00:51]} 54. Kc3 {[%emt 0:00:07]} Re2 {[%emt 0:00:06]} 55. Rd8 {[%emt 0:00:14]} Rxh2 {[%emt 0:00:15]} 56. Kd4 {[%emt 0:00:23]} Rd2+ {[%emt 0:00:46]} 57. Kc4 {[%emt 0:00:16]} Nb7 {[%emt 0:00:22]} 0-1

[Event "Najdorf Memorial-B 2022"]
[Site "Warsaw"]
[Date "2022.07.14"]
[Round "6.11"]
[White "Morczynski, Joachim"]
[Black "Flis, Piotr"]
[Result "1/2-1/2"]
[ECO "C22"]
[WhiteElo "1762"]
[BlackElo "1523"]
[Annotator "NA"]
[PlyCount "62"]
[EventDate "2022.07.09"]
[EventType "swiss"]
[EventCountry "POL"]
[SourceTitle "playchess.com"]
[Source "ChessBase"]
[SourceQuality "1"]
[TimeControl "40/5400+30:1800+30"]

1. e4 {[%emt 0:00:02]} e5 {[%emt 0:00:08]} 2. d4 {[%emt 0:00:11]} exd4 {[%emt 0:00:08]} 3. Qxd4 {[%emt 0:00:07]} Nc6 {[%emt 0:00:10]} 4. Qe3 {[%emt 0:00:06]} Nf6 {[%emt 0:00:10]} 5. Nc3 {[%emt 0:00:06]} Bb4 {[%emt 0:00:06]} 6. Bd2 {[%emt 0:00:10]} d6 {[%emt 0:00:18]} 7. O-O-O {[%emt 0:00:41]} Qe7 {[%emt 0:02:51]} 8. f4 {[%emt 0:04:02]} O-O {[%emt 0:14:04]} 9. Bd3 {[%emt 0:03:30]} Bxc3 {[%emt 0:09:11]} 10. Bxc3 {[%emt 0:00:13]} Nd5 {[%emt 0:00:11]} 11. Qd2 {[%emt 0:00:59]} Nxc3 {[%emt 0:00:09]} 12. Qxc3 {[%emt 0:00:08]} f5 {[%emt 0:00:07]} 13. Re1 {[%emt 0:03:04]} fxe4 {[%emt 0:00:50]} 14. Bxe4 {[%emt 0:01:26]} Qf6 {[%emt 0:00:22]} 15. Ne2 {[%emt 0:03:07]} Bd7 {[%emt 0:05:46]} 16. Bd5+ {[%emt 0:01:55]} Kh8 {[%emt 0:00:32]} 17. Rhf1 {[%emt 0:01:22]} Rae8 {[%emt 0:00:43]} 18. Qf3 {[%emt 0:01:23]} Be6 {[%emt 0:08:49]} 19. g4 {[%emt 0:06:04]} Bxd5 {[%emt 0:06:10]} 20. Qxd5 {[%emt 0:01:14]} Qe6 {[%emt 0:00:52]} 21. Qxe6 {[%emt 0:15:56]} Rxe6 {[%emt 0:00:52]} 22. Nc3 {[%emt 0:00:11]} Rxe1+ {[%emt 0:05:50]} 23. Rxe1 {[%emt 0:00:06]} g6 {[%emt 0:00:26]} 24. Nd5 {[%emt 0:00:43]} Kg7 {[%emt 0:00:31]} 25. Nxc7 {[%emt 0:00:15]} Kf7 {[%emt 0:01:26]} 26. Nd5 {[%emt 0:01:19]} a5 {[%emt 0:00:44]} 27. c3 {[%emt 0:00:34]} Ra8 {[%emt 0:01:21]} 28. Kc2 {[%emt 0:01:18]} b5 {[%emt 0:00:10]} 29. a3 {[%emt 0:00:48]} Rb8 {[%emt 0:00:24]} 30. Re4 {[%emt 0:03:23]} Rb7 {[%emt 0:00:20]} 31. b4 {[%emt 0:05:02]} a4 {[%emt 0:00:09]} 1/2-1/2

[Event "Najdorf Memorial-B 2022"]
[Site "Warsaw"]
[Date "2022.07.14"]
[Round "6.12"]
[White "Tomalak, Stanislaw"]
[Black "Nowak, Lukasz"]
[Result "1-0"]
[ECO "A06"]
[WhiteElo "1554"]
[BlackElo "2327"]
[Annotator "ChessBase"]
[PlyCount "47"]
[EventDate "2022.07.09"]
[EventType "swiss"]
[EventCountry "POL"]
[SourceTitle "playchess.com"]
[Source "ChessBase"]
[SourceQuality "1"]
[TimeControl "40/5400+30:1800+30"]

1. Nf3 {[%emt 0:00:03]} d5 {[%emt 0:00:07]} 2. g3 {[%emt 0:00:13]} Nd7 {[%emt 0:00:06]} 3. d3 {[%emt 0:00:13]} e5 {[%emt 0:00:10]} 4. Nbd2 {[%emt 0:00:12]} Ngf6 {[%emt 0:01:38]} 5. e4 {[%emt 0:00:19]} c6 {[%emt 0:06:01]} 6. Bg2 {[%emt 0:01:28]} Bc5 {[%emt 0:00:20]} 7. O-O {[%emt 0:00:20]} O-O {[%emt 0:00:06]} 8. h3 {[%emt 0:01:17]} Qc7 {[%emt 0:02:25]} 9. Re1 {[%emt 0:00:34]} Qb6 {[%emt 0:01:28]} 10. Qe2 {[%emt 0:04:33]} Nh5 {[%emt 0:07:17]} 11. Nf1 {[%emt 0:02:25]} Re8 {[%emt 0:01:54]} 12. exd5 {[%emt 0:06:25]} cxd5 {[%emt 0:00:19]} 13. d4 {[%emt 0:00:31]} Bxd4 {[%emt 0:02:35]} 14. Nxd4 {[%emt 0:03:19]} Nxg3 {[%emt 0:00:06]} 15. Nxg3 {[%emt 0:01:29]} Qxd4 {[%emt 0:00:06]} 16. Rd1 {[%emt 0:01:19]} Qa4 {[%emt 0:05:03]} 17. b3 {[%emt 0:02:55]} Qh4 {[%emt 0:00:40]} 18. Rxd5 {[%emt 0:06:01]} Nf6 {[%emt 0:01:09]} 19. Rxe5 {[%emt 0:03:06]} Bxh3 {[%emt 0:00:14]} 20. Bg5 {[%emt 0:04:21]} Qd4 {[%emt 0:09:03]} 21. Re1 {[%emt 0:02:38]} Rxe5 {[%emt 0:03:58]} 22. Qxe5 {[%emt 0:00:26]} Qd7 {[%emt 0:00:29]} 23. Bxf6 {[%emt 0:02:59]} Bxg2 {[%emt 0:00:26]} 24. Qg5 {[%emt 0:04:13]} 1-0

[Event "Najdorf Memorial-B 2022"]
[Site "Warsaw"]
[Date "2022.07.14"]
[Round "6.13"]
[White "Nocek, Dominik"]
[Black "Mossakowski, Jakub"]
[Result "1-0"]
[ECO "B91"]
[WhiteElo "1682"]
[BlackElo "1487"]
[Annotator "NA"]
[PlyCount "51"]
[EventDate "2022.07.09"]
[EventType "swiss"]
[EventCountry "POL"]
[SourceTitle "playchess.com"]
[Source "ChessBase"]
[SourceQuality "1"]
[TimeControl "40/5400+30:1800+30"]

1. e4 {[%emt 0:00:02]} c5 {[%emt 0:00:03]} 2. Nf3 {[%emt 0:00:05]} d6 {[%emt 0:00:03]} 3. d4 {[%emt 0:00:07]} cxd4 {[%emt 0:00:03]} 4. Nxd4 {[%emt 0:00:07]} Nf6 {[%emt 0:00:06]} 5. Nc3 {[%emt 0:00:09]} a6 {[%emt 0:00:02]} 6. g3 {[%emt 0:00:07]} e5 {[%emt 0:00:24]} 7. Nde2 {[%emt 0:00:14]} Be7 {[%emt 0:02:10]} 8. Bg2 {[%emt 0:00:13]} h5 {[%emt 0:02:27]} 9. h3 {[%emt 0:00:15]} Nc6 {[%emt 0:01:26]} 10. O-O {[%emt 0:10:29]} b5 {[%emt 0:04:34]} 11. Be3 {[%emt 0:11:05]} Bb7 {[%emt 0:01:25]} 12. a4 {[%emt 0:06:01]} b4 {[%emt 0:10:31]} 13. Nd5 {[%emt 0:02:37]} Nxd5 {[%emt 0:00:19]} 14. exd5 {[%emt 0:00:22]} Na7 {[%emt 0:01:01]} 15. a5 {[%emt 0:02:39]} h4 {[%emt 0:01:15]} 16. g4 {[%emt 0:06:10]} Qd7 {[%emt 0:00:38]} 17. f4 {[%emt 0:03:03]} Nb5 {[%emt 0:02:30]} 18. Qd2 {[%emt 0:05:51]} Rc8 {[%emt 0:04:22]} 19. Be4 {[%emt 0:03:07]} Qc7 {[%emt 0:03:54]} 20. Ra4 {[%emt 0:09:26]} exf4 {[%emt 0:02:21]} 21. Nxf4 {[%emt 0:02:35]} Bf6 {[%emt 0:00:41]} 22. Bb6 {[%emt 0:01:49]} Qe7 {[%emt 0:01:26]} 23. Rxb4 {[%emt 0:06:17]} O-O 24. Re1 {[%emt 0:07:48]} Rfe8 {[%emt 0:02:14]} 25. Bh7+ {[%emt 0:00:38]} Kxh7 {[%emt 0:00:34]} 26. Rxe7 {[%emt 0:00:02]} 1-0

[Event "Najdorf Memorial-B 2022"]
[Site "Warsaw"]
[Date "2022.07.14"]
[Round "6.14"]
[White "Kowalski, Witold"]
[Black "Jarmolowski, Tadeusz"]
[Result "0-1"]
[ECO "B33"]
[WhiteElo "1673"]
[BlackElo "1482"]
[Annotator "NA"]
[PlyCount "55"]
[EventDate "2022.07.09"]
[EventType "swiss"]
[EventCountry "POL"]
[SourceTitle "playchess.com"]
[Source "ChessBase"]
[SourceQuality "1"]
[TimeControl "40/5400+30:1800+30"]

1. e4 {[%emt 0:00:03]} c5 {[%emt 0:00:15]} 2. Nf3 Nc6 {[%emt 0:00:08]} 3. d4 {[%emt 0:00:14]} cxd4 {[%emt 0:00:07]} 4. Nxd4 {[%emt 0:00:06]} Nf6 {[%emt 0:00:13]} 5. Nc3 {[%emt 0:00:11]} e6 {[%emt 0:00:10]} 6. Ndb5 {[%emt 0:00:26]} Bb4 {[%emt 0:00:17]} 7. a3 {[%emt 0:03:20]} Bxc3+ {[%emt 0:00:14]} 8. Nxc3 {[%emt 0:00:08]} d5 {[%emt 0:00:51]} 9. exd5 {[%emt 0:02:33]} Nxd5 {[%emt 0:00:29]} 10. Nxd5 {[%emt 0:05:31]} exd5 {[%emt 0:00:39]} 11. Bd3 {[%emt 0:11:33]} Qe7+ {[%emt 0:02:04]} 12. Qe2 {[%emt 0:01:10]} Qxe2+ {[%emt 0:00:19]} 13. Kxe2 {[%emt 0:02:42]} O-O {[%emt 0:01:44]} 14. Bf4 {[%emt 0:06:07]} Bf5 {[%emt 0:03:43]} 15. Bxf5 {[%emt 0:22:23]} Nd4+ {[%emt 0:00:18]} 16. Kf1 {[%emt 0:00:56]} Nxf5 {[%emt 0:00:16]} 17. Rd1 {[%emt 0:00:10]} Rfd8 {[%emt 0:00:44]} 18. g4 {[%emt 0:09:27]} Ne7 {[%emt 0:00:50]} 19. h3 {[%emt 0:04:35]} Rac8 {[%emt 0:03:16]} 20. c3 {[%emt 0:04:11]} f6 {[%emt 0:01:40]} 21. Kg2 {[%emt 0:00:44]} Kf7 {[%emt 0:00:26]} 22. Rd3 {[%emt 0:03:38]} b5 {[%emt 0:03:21]} 23. Rhd1 {[%emt 0:01:29]} Rd7 {[%emt 0:05:26]} 24. a4 {[%emt 0:10:24]} Rc4 {[%emt 0:05:23]} 25. Rd4 {[%emt 0:01:06]} Rxa4 {[%emt 0:00:19]} 26. Rxa4 {[%emt 0:00:24]} bxa4 {[%emt 0:00:14]} 27. Ra1 {[%emt 0:00:14]} Rb7 {[%emt 0:00:32]} 28. Rxa4 {[%emt 0:00:06]} 0-1

[Event "Najdorf Memorial-B 2022"]
[Site "Warsaw"]
[Date "2022.07.14"]
[Round "6.15"]
[White "Wasiluk, Mateusz"]
[Black "Wieckowski, Michal"]
[Result "0-1"]
[ECO "A59"]
[WhiteElo "1496"]
[BlackElo "1669"]
[Annotator "NA"]
[PlyCount "110"]
[EventDate "2022.07.09"]
[EventType "swiss"]
[EventCountry "POL"]
[SourceTitle "playchess.com"]
[Source "ChessBase"]
[SourceQuality "1"]
[TimeControl "40/5400+30:1800+30"]

1. d4 {[%emt 0:00:02]} Nf6 {[%emt 0:00:23]} 2. c4 {[%emt 0:00:04]} c5 {[%emt 0:00:04]} 3. d5 {[%emt 0:00:04]} b5 {[%emt 0:00:04]} 4. cxb5 {[%emt 0:00:06]} a6 {[%emt 0:00:06]} 5. bxa6 {[%emt 0:00:10]} Bxa6 {[%emt 0:00:38]} 6. Nc3 {[%emt 0:00:08]} d6 {[%emt 0:00:40]} 7. e4 {[%emt 0:00:31]} Bxf1 {[%emt 0:05:27]} 8. Kxf1 {[%emt 0:00:05]} g6 {[%emt 0:01:05]} 9. g3 {[%emt 0:00:07]} Bg7 {[%emt 0:00:55]} 10. Nf3 {[%emt 0:00:24]} Nbd7 {[%emt 0:01:03]} 11. Kg2 {[%emt 0:04:16]} O-O {[%emt 0:09:35]} 12. h3 {[%emt 0:12:56]} Qa5 {[%emt 0:06:32]} 13. Bg5 {[%emt 0:02:09]} Rfb8 {[%emt 0:13:40]} 14. Qe2 {[%emt 0:04:51]} h6 {[%emt 0:03:40]} 15. Bxf6 {[%emt 0:05:12]} Bxf6 {[%emt 0:00:25]} 16. Qc2 {[%emt 0:04:37]} Ra7 {[%emt 0:16:11]} 17. Rab1 {[%emt 0:09:16]} Rab7 {[%emt 0:06:50]} 18. Nd2 {[%emt 0:04:15]} Nb6 {[%emt 0:01:08]} 19. Rhe1 {[%emt 0:08:35]} Ra7 {[%emt 0:12:21]} 20. Nb3 {[%emt 0:11:40]} Qa6 {[%emt 0:01:46]} 21. f4 {[%emt 0:04:07]} Bd4 {[%emt 0:00:20]} 22. Ne2 {[%emt 0:06:31]} Bg7 {[%emt 0:06:38]} 23. a3 {[%emt 0:04:00]} Nc4 {[%emt 0:00:57]} 24. Nec1 {[%emt 0:00:53]} Qb5 {[%emt 0:01:13]} 25. Qd3 {[%emt 0:03:20]} Nxb2 {[%emt 0:00:54]} 26. Qxb5 {[%emt 0:05:46]} Rxb5 {[%emt 0:00:01]} 27. e5 {[%emt 0:00:29]} Nc4 {[%emt 0:04:16]} 28. Nd2 {[%emt 0:04:11]} Rxb1 {[%emt 0:00:14]} 29. Nxb1 {[%emt 0:00:08]} Nxa3 {[%emt 0:01:40]} 30. Nxa3 {[%emt 0:02:17]} Rxa3 {[%emt 0:00:00]} 31. exd6 {[%emt 0:00:20]} exd6 {[%emt 0:00:03]} 32. Re8+ {[%emt 0:00:46]} Bf8 {[%emt 0:00:09]} 33. Kf2 {[%emt 0:00:38]} f5 {[%emt 0:04:02]} 34. Re3 {[%emt 0:01:37]} Ra4 {[%emt 0:03:20]} 35. Ne2 {[%emt 0:01:29]} Kf7 {[%emt 0:00:17]} 36. g4 {[%emt 0:00:53]} h5 {[%emt 0:01:06]} 37. gxf5 {[%emt 0:00:45]} gxf5 {[%emt 0:00:01]} 38. Kf3 {[%emt 0:00:55]} h4 {[%emt 0:00:19]} 39. Re6 {[%emt 0:00:22]} Ra3+ {[%emt 0:00:22]} 40. Re3 {[%emt 0:00:00]} Ra1 {[%emt 0:00:00]} 41. Kf2 {[%emt 0:06:43]} Rd1 {[%emt 0:01:54]} 42. Nc3 {[%emt 0:00:48]} Rd4 {[%emt 0:02:47]} 43. Kf3 {[%emt 0:02:19]} Bh6 {[%emt 0:02:14]} 44. Nb5 {[%emt 0:02:28]} Rxd5 {[%emt 0:01:36]} 45. Nc7 {[%emt 0:00:12]} Rd4 {[%emt 0:02:46]} 46. Ne6 {[%emt 0:00:19]} Re4 {[%emt 0:01:11]} 47. Nc7 {[%emt 0:02:07]} Rxf4+ {[%emt 0:02:42]} 48. Kg2 {[%emt 0:00:09]} Rg4+ {[%emt 0:00:43]} 49. hxg4 {[%emt 0:00:07]} Bxe3 {[%emt 0:00:05]} 50. gxf5 {[%emt 0:00:09]} c4 {[%emt 0:01:26]} 51. Nd5 {[%emt 0:00:12]} Bd2 {[%emt 0:01:35]} 52. Kh3 {[%emt 0:00:25]} c3 {[%emt 0:00:53]} 53. Nb4 {[%emt 0:00:04]} Be1 {[%emt 0:02:13]} 54. Nd3 {[%emt 0:00:21]} c2 {[%emt 0:00:42]} 55. Nxe1 {[%emt 0:00:07]} c1=Q {[%emt 0:00:06]} 0-1

[Event "Najdorf Memorial-B 2022"]
[Site "Warsaw"]
[Date "2022.07.14"]
[Round "6.16"]
[White "Szewczyk, Michal"]
[Black "Marczuk, Wojciech"]
[Result "0-1"]
[ECO "B01"]
[WhiteElo "1668"]
[BlackElo "1324"]
[Annotator "NA"]
[PlyCount "60"]
[EventDate "2022.07.09"]
[EventType "swiss"]
[EventCountry "POL"]
[SourceTitle "playchess.com"]
[Source "ChessBase"]
[SourceQuality "1"]
[TimeControl "40/5400+30:1800+30"]

1. e4 {[%emt 0:00:02]} d5 {[%emt 0:00:08]} 2. exd5 {[%emt 0:00:06]} Nf6 {[%emt 0:00:06]} 3. Nc3 {[%emt 0:00:15]} Nxd5 {[%emt 0:00:05]} 4. d4 {[%emt 0:00:11]} g6 {[%emt 0:00:46]} 5. Nf3 {[%emt 0:00:57]} Bg7 {[%emt 0:00:36]} 6. Nxd5 {[%emt 0:10:08]} Qxd5 {[%emt 0:00:09]} 7. Bd3 {[%emt 0:00:58]} Bg4 {[%emt 0:05:14]} 8. c3 {[%emt 0:00:46]} Nc6 {[%emt 0:03:06]} 9. h3 {[%emt 0:03:22]} Bxf3 {[%emt 0:02:16]} 10. gxf3 {[%emt 0:00:21]} O-O-O {[%emt 0:03:38]} 11. Be4 {[%emt 0:01:38]} Qb5 {[%emt 0:09:45]} 12. a4 {[%emt 0:00:55]} Qb6 {[%emt 0:00:58]} 13. a5 {[%emt 0:01:16]} Nxa5 {[%emt 0:05:40]} 14. b4 {[%emt 0:03:14]} Nc6 {[%emt 0:10:08]} 15. Qa4 {[%emt 0:06:56]} Nxd4 {[%emt 0:19:18]} 16. cxd4 {[%emt 0:03:36]} Bxd4 {[%emt 0:00:45]} 17. Ra2 {[%emt 0:00:28]} Qe6 {[%emt 0:14:33]} 18. Kf1 {[%emt 0:06:08]} Rd6 {[%emt 0:02:32]} 19. b5 {[%emt 0:02:22]} f5 {[%emt 0:00:23]} 20. Bb1 {[%emt 0:01:15]} Rhd8 {[%emt 0:02:53]} 21. Kg2 {[%emt 0:09:48]} Bb6 {[%emt 0:01:20]} 22. Qc2 {[%emt 0:07:07]} Rd3 {[%emt 0:02:13]} 23. Bf4 {[%emt 0:05:21]} R8d7 {[%emt 0:07:48]} 24. Bxc7 {[%emt 0:15:00]} Bxc7 {[%emt 0:02:58]} 25. Rxa7 {[%emt 0:00:32]} R7d4 {[%emt 0:01:22]} 26. Ba2 {[%emt 0:02:08]} Qb6 {[%emt 0:01:22]} 27. Ra8+ {[%emt 0:01:07]} Kd7 {[%emt 0:00:06]} 28. Re1 {[%emt 0:01:33]} Rd2 {[%emt 0:00:33]} 29. Qb3 {[%emt 0:01:53]} Rxf2+ {[%emt 0:01:28]} 30. Kxf2 {[%emt 0:01:44]} Rd2+ {[%emt 0:00:09]} 0-1

[Event "Najdorf Memorial-B 2022"]
[Site "Warsaw"]
[Date "2022.07.14"]
[Round "6.17"]
[White "Jankowski, Franciszek"]
[Black "Carrieri, Maurizio"]
[Result "0-1"]
[ECO "A57"]
[WhiteElo "1483"]
[BlackElo "1666"]
[Annotator "NA"]
[PlyCount "92"]
[EventDate "2022.07.09"]
[EventType "swiss"]
[EventCountry "POL"]
[SourceTitle "playchess.com"]
[Source "ChessBase"]
[SourceQuality "1"]
[TimeControl "40/5400+30:1800+30"]

1. d4 {[%emt 0:00:04]} Nf6 {[%emt 0:00:06]} 2. c4 {[%emt 0:00:05]} c5 {[%emt 0:00:03]} 3. d5 {[%emt 0:00:08]} b5 {[%emt 0:00:03]} 4. cxb5 {[%emt 0:00:06]} a6 {[%emt 0:00:04]} 5. b6 {[%emt 0:00:09]} Qxb6 {[%emt 0:00:17]} 6. Nc3 {[%emt 0:00:34]} g6 {[%emt 0:03:28]} 7. e4 {[%emt 0:00:37]} d6 {[%emt 0:00:19]} 8. Nf3 {[%emt 0:00:25]} Bg7 {[%emt 0:03:42]} 9. Be2 {[%emt 0:02:28]} Nbd7 {[%emt 0:03:30]} 10. O-O {[%emt 0:01:08]} O-O {[%emt 0:00:09]} 11. Nd2 {[%emt 0:04:04]} Ne8 {[%emt 0:04:10]} 12. Nc4 {[%emt 0:00:57]} Qd8 {[%emt 0:04:09]} 13. Be3 {[%emt 0:07:52]} Nb6 {[%emt 0:04:47]} 14. Qd2 {[%emt 0:03:32]} Nxc4 {[%emt 0:03:15]} 15. Bxc4 {[%emt 0:00:08]} Nc7 {[%emt 0:03:30]} 16. Bh6 {[%emt 0:02:07]} Qd7 {[%emt 0:04:23]} 17. Bxg7 {[%emt 0:00:36]} Kxg7 {[%emt 0:00:05]} 18. a4 {[%emt 0:09:51]} a5 {[%emt 0:05:01]} 19. f4 {[%emt 0:12:19]} Ba6 {[%emt 0:03:32]} 20. b3 {[%emt 0:07:54]} Bxc4 {[%emt 0:03:39]} 21. bxc4 {[%emt 0:01:05]} Na6 {[%emt 0:03:26]} 22. Rae1 {[%emt 0:08:03]} Nb4 {[%emt 0:05:50]} 23. e5 {[%emt 0:03:49]} Rae8 {[%emt 0:04:27]} 24. e6 {[%emt 0:06:18]} fxe6 {[%emt 0:00:18]} 25. Rxe6 {[%emt 0:04:02]} Rf6 {[%emt 0:03:40]} 26. Rfe1 {[%emt 0:07:06]} Rxe6 {[%emt 0:04:09]} 27. Rxe6 {[%emt 0:00:22]} Rf8 {[%emt 0:03:28]} 28. Qe2 {[%emt 0:01:22]} Rf7 {[%emt 0:00:12]} 29. h4 {[%emt 0:04:06]} Kf8 {[%emt 0:03:56]} 30. g3 {[%emt 0:01:03]} Rf6 {[%emt 0:03:35]} 31. Qg4 {[%emt 0:05:43]} Rxe6 {[%emt 0:05:11]} 32. dxe6 {[%emt 0:00:05]} Qe8 {[%emt 0:00:42]} 33. f5 {[%emt 0:02:35]} Nc6 {[%emt 0:02:27]} 34. Qf4 {[%emt 0:01:41]} gxf5 {[%emt 0:02:54]} 35. Qxf5+ {[%emt 0:00:12]} Kg7 {[%emt 0:00:14]} 36. h5 {[%emt 0:00:48]} Nd4 {[%emt 0:03:22]} 37. Qg4+ {[%emt 0:01:23]} Kh8 {[%emt 0:00:13]} 38. Ne4 {[%emt 0:03:08]} Qg8 {[%emt 0:00:29]} 39. Ng5 {[%emt 0:00:35]} Qxg5 {[%emt 0:00:13]} 40. Qxg5 {[%emt 0:00:00]} Nf3+ {[%emt 0:00:00]} 41. Kf2 {[%emt 0:03:11]} Nxg5 {[%emt 0:00:17]} 42. h6 {[%emt 0:02:22]} Nxe6 {[%emt 0:01:17]} 43. Ke3 {[%emt 0:00:13]} Kg8 {[%emt 0:02:06]} 44. Ke4 {[%emt 0:01:05]} Nc7 {[%emt 0:00:23]} 45. g4 {[%emt 0:00:50]} e6 {[%emt 0:00:19]} 46. g5 {[%emt 0:01:32]} Kf7 {[%emt 0:00:06]} 0-1